fUST/lending_fUST_20240414
["ID","MTS","AMOUNT","RATE_DAILY","PERIOD"]
[322528996,1713040262499,-1000.0,0.01978082,120]
[322528998,1713040262509,-1485.0,0.019898,60]
[322528999,1713040262518,-150.0,0.02,120]
[322529001,1713040262528,-155.0,0.02,120]
[322529004,1713040262539,-350.0,0.02,120]
[322529006,1713040262550,-801.51924468,0.02,2]
[322529008,1713040262560,-3042.35697349,0.02,120]
[322529010,1713040262577,-1000.0,0.02,120]
[322529012,1713040262586,-499.82515609,0.02,120]
[322529013,1713040262596,-200.0,0.02012,120]
[322529016,1713040262606,-2999.0,0.02078,120]
[322529017,1713040262620,-801.51924468,0.021,2]
[322529019,1713040262632,-1000.0,0.021,120]
[322529021,1713040262643,-499.82515609,0.021,120]
[322529023,1713040262653,-200.0,0.02143,120]
[322529025,1713040262665,-226.08246914,0.02161543,14]
[322529027,1713040262675,-1000.0,0.02175342,120]
[322529030,1713040262686,-2999.0,0.02178,120]
[322529032,1713040262696,-100000.0,0.0218,120]
[322529034,1713040262707,-151.0,0.0218,120]
[322529035,1713040262716,-450.0,0.022,120]
[322529037,1713040262726,-801.51924468,0.022,2]
[322529039,1713040262736,-1000.0,0.022,120]
[322529041,1713040262745,-499.82515609,0.022,120]
[322529043,1713040262755,-155.0,0.02222,120]
[322529045,1713040262765,-200.0,0.02238,120]
[322529047,1713040262775,-2999.0,0.02278,120]
[322529050,1713040262784,-801.51924468,0.023,2]
[322529052,1713040262796,-1000.0,0.023,120]
[322529054,1713040262806,-499.82515609,0.023,120]
[322529056,1713040262821,-200.0,0.02314,120]
[322529058,1713040262831,-2040.22798588,0.02374329,30]
[322529060,1713040262840,-2999.0,0.02378,120]
[322529062,1713040262850,-450.0,0.024,120]
[322529064,1713040262860,-801.51924468,0.024,2]
[322529066,1713040262869,-1000.0,0.024,120]
[322529068,1713040262878,-499.82515609,0.024,120]
[322529070,1713040262888,-4026.5117,0.02407449,78]
[322529072,1713040262897,-200.0,0.02437,120]
[322529073,1713040262906,-2999.0,0.02478,120]
[322529075,1713040262916,-150.0,0.025,120]
[322529077,1713040262925,-3500.0,0.025,120]
[322529079,1713040262934,-801.51924468,0.025,2]
[322529082,1713040262944,-1000.0,0.025,120]
[322529084,1713040262953,-499.82515609,0.025,120]
[322529085,1713040262962,-200.0,0.0254,120]
[322529087,1713040262972,-4915.28,0.025423,86]
[322529090,1713040262981,-2999.0,0.02578,120]
[322529092,1713040262991,-450.0,0.026,120]
[322529093,1713040263002,-801.51924468,0.026,2]
[322529095,1713040263011,-1000.0,0.026,120]
[322529097,1713040263021,-499.82515609,0.026,120]
[322529106,1713040263095,-200.0,0.02637,120]
[322529108,1713040263105,-2999.0,0.02678,120]
[322529110,1713040263115,-801.51924468,0.027,2]
[322529112,1713040263124,-1000.0,0.027,120]
[322529114,1713040263134,-499.82515609,0.027,120]
[322529116,1713040263143,-200.0,0.02738,120]
[322529118,1713040263153,-1000.0,0.0274,120]
[322529120,1713040263162,-2999.0,0.02778,120]
[322529122,1713040263172,-3477.2,0.028,68]
[322529124,1713040263181,-450.0,0.028,120]
[322529126,1713040263190,-801.51924468,0.028,2]
[322529128,1713040263200,-1000.0,0.028,120]
[322529130,1713040263209,-499.82515609,0.028,120]
[322529132,1713040263219,-1000.0,0.0283,120]
[322529134,1713040263229,-1743.22112,0.0284,62]
[322529136,1713040263238,-200.0,0.02848,120]
[322529138,1713040263248,-226.08246914,0.02871133,14]
[322529140,1713040263257,-2999.0,0.02878,120]
[322529142,1713040263267,-1378.0977894,0.0289,120]
[322529144,1713040263276,-2040.22798588,0.02899443,30]
[322529146,1713040263284,-801.51924468,0.029,2]
[322529148,1713040263293,-1000.0,0.029,120]
[322529150,1713040263303,-1000.0,0.0290757,120]
[322529152,1713040263312,-1272.37711,0.02934333,112]
[322529154,1713040263328,-200.0,0.02943,120]
[322529156,1713040263337,-200.0,0.0294747,120]
[322529158,1713040263347,-1000.0,0.0295,120]
[322529160,1713040263356,-2999.0,0.02978,120]
[322529162,1713040263366,-2000.0,0.03,120]
[322529164,1713040263380,-164.54940196,0.03,120]
[322529166,1713040263390,-6774.33758576,0.03,7]
[322529168,1713040263399,-155.0,0.03,120]
[322529170,1713040263409,-5001.0,0.03,120]
[322529172,1713040263420,-801.51924468,0.03,2]
[322529173,1713040263430,-300.0,0.03,120]
[322529175,1713040263440,-1000.0,0.03,120]
[322529177,1713040263449,-369.28541154,0.03,120]
[322529179,1713040263461,-287.18224413,0.03,120]
[322529181,1713040263472,-200.0,0.0301,120]
[322529183,1713040263482,-4898.92,0.0301204,85]
[322529186,1713040263492,-4999.0,0.03078,120]
[322529187,1713040263502,-801.51924468,0.031,2]
[322529190,1713040263512,-200.0,0.031415,120]
[322529191,1713040263522,-4999.0,0.03178,120]
[322529193,1713040263531,-801.51924468,0.032,2]
[322529195,1713040263540,-300.0,0.032,120]
[322529197,1713040263550,-1000.0,0.0324,120]
[322529199,1713040263559,-200.0,0.032415,120]
[322529201,1713040263573,-4999.0,0.03278,120]
[322529202,1713040263582,-1616.0,0.033,85]
[322529203,1713040263594,-5000.0,0.033,120]
[322529204,1713040263603,-801.51924468,0.033,2]
[322529205,1713040263612,-155.0,0.03333,120]
[322529206,1713040263622,-200.0,0.03346,120]
[322529207,1713040263631,-151.0,0.0336,120]
[322529208,1713040263642,-4999.0,0.03378,120]
[322529209,1713040263652,-43301.42134309,0.0339,30]
[322529210,1713040263662,-801.51924468,0.034,2]
[322529211,1713040263672,-300.0,0.034,120]
[322529212,1713040263682,-2040.22798588,0.03424557,30]
[322529213,1713040263692,-200.0,0.03451,120]
[322529214,1713040263701,-1000.0,0.0346,120]
[322529215,1713040263711,-9999.0,0.0348,120]
[322529216,1713040263720,-153.32801705,0.0348,120]
[322529217,1713040263730,-53701.20125058,0.03489998,120]
[322529218,1713040263739,-153.9572966,0.0349863,120]
[322529219,1713040263749,-264.8720925,0.0349863,120]
[322529220,1713040263758,-153.0,0.0349863,120]
[322529221,1713040263767,-150.0,0.035,120]
[322529222,1713040263777,-3914.0,0.035,120]
[322529224,1713040263787,-801.49725076,0.035,2]
[322529226,1713040263796,-20000.0,0.035,120]
[322529228,1713040263806,-264.0231095,0.03500274,120]
[322529230,1713040263815,-306.0,0.03506849,120]
[322529232,1713040263829,-154.6785413,0.03507671,120]
[322529234,1713040263839,-306.0,0.03507671,120]
[322529235,1713040263848,-191.225278,0.03508493,120]
[322529237,1713040263858,-347.7310961,0.03508493,120]
[322529239,1713040263868,-321.9285218,0.03528904,120]
[322529241,1713040263877,-153.0,0.03538904,120]
[322529243,1713040263887,-200.0,0.03546,120]
[322529246,1713040263897,-9999.0,0.0358,120]
[322529247,1713040263906,-431.22,0.0358,90]
[322529249,1713040263916,-226.08246914,0.03580722,14]
[322529251,1713040263925,-4676.974,0.03581,63]
[322529253,1713040263935,-801.49725076,0.036,2]
[322529256,1713040263945,-300.0,0.036,120]
[322529257,1713040263954,-1054.501505,0.036,120]
[322529259,1713040263963,-2275.460152,0.036,120]
[322529261,1713040263973,-1544.377425,0.0362331,88]
[322529263,1713040263983,-4306.0,0.03631403,80]
[322529265,1713040263992,-200.0,0.03634,120]
[322529267,1713040264002,-9999.0,0.0368,120]
[322529269,1713040264012,-801.49725076,0.037,2]
[322529271,1713040264022,-2286.29903,0.03719,92]
[322529273,1713040264034,-306.0,0.03738904,120]
[322529275,1713040264044,-308.0101215,0.03738904,120]
[322529277,1713040264054,-200.0,0.0374747,120]
[322529279,1713040264063,-200.0,0.03748,120]
[322529281,1713040264078,-7304.76804,0.03777,120]
[322529283,1713040264088,-1981.826217,0.03777497,80]
[322529285,1713040264098,-9999.0,0.0378,120]
[322529287,1713040264107,-801.49725076,0.038,2]
[322529289,1713040264119,-300.0,0.038,120]
[322529291,1713040264128,-3000.0,0.038,60]
[322529293,1713040264137,-49488.76431629,0.038,120]
[322529295,1713040264146,-17366.1104472,0.038,120]
[322529297,1713040264155,-1000.0,0.0382,120]
[322529299,1713040264166,-200.0,0.03827,120]
[322529301,1713040264175,-100575.47852764,0.0384,120]
[322529303,1713040264184,-938.5967414,0.0384,120]
[322529305,1713040264194,-9999.0,0.0388,120]
[322529307,1713040264203,-801.49725076,0.039,2]
[322529309,1713040264212,-5991.77332071,0.039,120]
[322529311,1713040264224,-200.0,0.03946,120]
[322529319,1713040264294,-2040.22798588,0.03949672,30]
[322529321,1713040264305,-1000.0,0.0395,120]
[322529323,1713040264315,-9999.0,0.0398,120]
[322529325,1713040264330,-1168.27145887,0.0399,120]
[322529327,1713040264340,-472.0,0.0399997,35]
[322529329,1713040264350,-472.0,0.0399998,35]
[322529331,1713040264360,-472.0,0.0399999,35]
[322529333,1713040264370,-3000.0,0.04,120]
[322529335,1713040264385,-200.0,0.04,120]
[322529337,1713040264395,-1000.0,0.04,120]
[322529339,1713040264406,-500.0,0.04,120]
[322529341,1713040264416,-2268.6119,0.04,103]
[322529343,1713040264429,-155.0,0.04,120]
[322529345,1713040264440,-801.49725076,0.04,2]
[322529347,1713040264450,-200.0,0.04,120]
[322529349,1713040264461,-500.0,0.04,120]
[322529351,1713040264472,-6773.61925901,0.04,60]
[322529353,1713040264482,-200.0,0.04013,120]
[322529355,1713040264492,-2314.28896,0.04028,72]
[322529357,1713040264501,-150.0,0.041,120]
[322529359,1713040264511,-5000.0,0.041,120]
[322529361,1713040264520,-801.49725076,0.041,2]
[322529363,1713040264530,-9800.0,0.0419,120]
[322529366,1713040264540,-801.49725076,0.042,2]
[322529368,1713040264550,-200.0,0.042,120]
[322529370,1713040264560,-200.0,0.04235,120]
[322529371,1713040264574,-9800.0,0.0429,120]
[322529374,1713040264583,-226.08246914,0.04290311,14]
[322529376,1713040264593,-801.49725076,0.043,2]
[322529377,1713040264604,-200.0,0.04323,120]
[322529379,1713040264614,-1341.90734,0.043441,93]
[322529381,1713040264624,-9800.0,0.0439,120]
[322529383,1713040264634,-800.0,0.044,2]
[322529385,1713040264644,-200.0,0.044,120]
[322529387,1713040264654,-250.0,0.044,120]
[322529389,1713040264663,-200.0,0.04429,120]
[322529391,1713040264673,-155.0,0.04444,120]
[322529393,1713040264683,-2040.22798588,0.04474786,30]
[322529395,1713040264695,-9800.0,0.0449,120]
[322529397,1713040264705,-150.0,0.045,120]
[322529399,1713040264716,-5000.0,0.045,120]
[322529401,1713040264726,-200.0,0.04537,120]
[322529403,1713040264737,-151.0,0.0454,120]
[322529406,1713040264748,-9800.0,0.0459,120]
[322529408,1713040264757,-5467.60889505,0.0459876,120]
[322529410,1713040264768,-800.0,0.046,2]
[322529412,1713040264777,-200.0,0.046,120]
[322529414,1713040264787,-1309.87,0.04643,71]
[322529416,1713040264796,-200.0,0.04648,120]
[322529418,1713040264805,-5987.54,0.046876,120]
[322529419,1713040264815,-9800.0,0.0469,120]
[322529421,1713040264830,-200.0,0.04734,120]
[322529423,1713040264840,-5011.350001,0.0473876,120]
[322529425,1713040264850,-200.0,0.0474747,120]
[322529427,1713040264860,-1000.0,0.0476,120]
[322529429,1713040264871,-4829.233734,0.04777,120]
[322529431,1713040264882,-9800.0,0.0479,120]
[322529433,1713040264892,-800.0,0.048,2]
[322529435,1713040264902,-200.0,0.048,120]
[322529437,1713040264912,-200.0,0.04837,120]
[322529439,1713040264922,-5201.11,0.0483876,120]
[322529441,1713040264932,-410.0,0.0488,90]
[322529443,1713040264942,-9800.0,0.0489,120]
[322529445,1713040264951,-3514.56,0.0489,88]
[322529447,1713040264962,-160.93,0.04899999,120]
[322529449,1713040264973,-160.93,0.04899999,120]
[322529451,1713040264983,-160.93,0.04899999,120]
[322529453,1713040264992,-10500.0,0.049,120]
[322529455,1713040265002,-473685.73254068,0.049,120]
[322529457,1713040265012,-18813.25624162,0.049,120]
[322529459,1713040265022,-2577.5465,0.049155,104]
[322529461,1713040265033,-491.50467721,0.0492,120]
[322529462,1713040265138,-805.56338879,0.04935715,120]
[322529465,1713040265150,-200.0,0.04948,120]
[322529466,1713040265161,-205.1152046,0.04981644,120]
[322529468,1713040265173,-226.08246914,0.049999,14]
[322529471,1713040265185,-2040.22798588,0.049999,30]
[322529473,1713040265198,-10000.0,0.05,120]
[322529474,1713040265208,-1681.4,0.05,76]
[322529476,1713040265218,-1604.0,0.05,85]
[322529478,1713040265228,-155.0,0.05,120]
[322529480,1713040265239,-1253.66150729,0.05,120]
[322529483,1713040265250,-1000.0,0.05,120]
[322529484,1713040265261,-150.0,0.05,120]
[322529486,1713040265271,-200.0,0.05,120]
[322529488,1713040265282,-1022.0,0.05,120]
[322529490,1713040265293,-2025.0,0.05,120]
[322529492,1713040265303,-1000432.50346767,0.05,120]
[322529494,1713040265313,-805.56338879,0.05033929,120]
[322529496,1713040265329,-200.0,0.050374,120]
[322529499,1713040265344,-10000.0,0.051,120]
[322529501,1713040265354,-805.56338879,0.05132144,120]
[322529503,1713040265364,-200.0,0.05147,120]
[322529505,1713040265374,-1626.047,0.051562,76]
[322529506,1713040265388,-10000.0,0.052,120]
[322529508,1713040265399,-200.0,0.052,120]
[322529510,1713040265409,-805.56338879,0.05230357,120]
[322529512,1713040265421,-200.0,0.05242,120]
[322529514,1713040265432,-10000.0,0.053,120]
[322529516,1713040265442,-4487.626,0.053,106]
[322529518,1713040265454,-1503.131,0.053107,78]
[322529520,1713040265469,-805.56338879,0.05328572,120]
[322529522,1713040265480,-200.0,0.05338,120]
[322529524,1713040265492,-1411.075915,0.0534,88]
[322529527,1713040265503,-1475.0,0.05363448,115]
[322529534,1713040265579,-1000.0,0.0538,120]
[322529536,1713040265589,-10000.0,0.054,120]
[322529538,1713040265600,-200.0,0.054,120]
[322529540,1713040265610,-805.56338879,0.05426786,120]
[322529542,1713040265620,-1804.97155,0.05434,68]
[322529544,1713040265630,-200.0,0.05443,120]
[322529546,1713040265640,-4813.8364,0.0544395,92]
[322529548,1713040265650,-10000.0,0.055,120]
[322529550,1713040265660,-150.0,0.055,120]
[322529552,1713040265671,-150.0,0.055,120]
[322529554,1713040265681,-805.56338879,0.05525278,120]
[322529556,1713040265692,-200.0,0.05537,120]
[322529558,1713040265704,-155.0,0.05555,120]
[322529561,1713040265715,-10000.0,0.056,120]
[322529563,1713040265727,-200.0,0.056,120]
[322529565,1713040265738,-805.56338879,0.05623214,120]
[322529566,1713040265748,-200.0,0.05634,120]
[322529568,1713040265759,-1000.0,0.0564,120]
[322529570,1713040265769,-10000.0,0.057,120]
[322529572,1713040265780,-151.0,0.0572,120]
[322529574,1713040265790,-805.56338879,0.0572143,120]
[322529576,1713040265801,-200.0,0.05728,120]
[322529578,1713040265811,-5070.0,0.05735,111]
[322529580,1713040265826,-200.0,0.0574747,120]
[322529582,1713040265839,-155.0,0.05777,120]
[322529584,1713040265855,-306.4981697,0.05799425,120]
[322529586,1713040265865,-153.0,0.05799425,120]
[322529588,1713040265877,-306.0,0.05799425,120]
[322529590,1713040265888,-153.0,0.05799425,120]
[322529592,1713040265898,-10000.0,0.058,120]
[322529594,1713040265910,-200.0,0.058,120]
[322529596,1713040265920,-3440.3879805,0.058,120]
[322529598,1713040265931,-15000.0,0.058,120]
[322529600,1713040265943,-153.0,0.05800384,120]
[322529602,1713040265956,-153.0,0.05800384,120]
[322529604,1713040265966,-153.4816298,0.05800384,120]
[322529606,1713040265977,-153.0,0.05800384,120]
[322529608,1713040265988,-387.1094051,0.05800384,120]
[322529610,1713040265999,-805.56338879,0.05819644,120]
[322529612,1713040266010,-200.0,0.05846,120]
[322529614,1713040266021,-275000.0,0.05888,120]
[322529616,1713040266032,-191.48201612,0.0589999,120]
[322529618,1713040266043,-10000.0,0.059,120]
[322529620,1713040266057,-10000.0,0.059,120]
[322529622,1713040266074,-805.56338879,0.05917857,120]
[322529624,1713040266085,-200.0,0.05947,120]
[322529626,1713040266097,-4860.74306,0.05969687,105]
[322529629,1713040266111,-1900.0,0.0598,120]
[322529631,1713040266123,-10400.73355132,0.0598,120]
[322529634,1713040266147,-154.8963363,0.0599463,120]
[322529636,1713040266171,-305.3131494,0.0599463,120]
[322529639,1713040266194,-375.5420866,0.05995452,120]
[322529643,1713040266218,-472.0,0.0599998,35]
[322529645,1713040266239,-472.0,0.0599999,35]
[322529648,1713040266258,-5522.76693549,0.0599999,30]
[322529651,1713040266281,-10000.0,0.06,120]
[322529654,1713040266304,-155.0,0.06,120]
[322529657,1713040266332,-1000.0,0.06,120]
[322529660,1713040266356,-200.0,0.06,120]
[322529663,1713040266382,-500.29727853,0.06,120]
[322529666,1713040266403,-248.62752312,0.06,120]
[322529668,1713040266420,-805.56338879,0.06016071,120]
[322529671,1713040266440,-200.0,0.060232,120]
[322529673,1713040266459,-405.5342806,0.06039014,120]
[322529676,1713040266485,-202.8732917,0.06039836,120]
[322529678,1713040266502,-202.9164481,0.06039836,120]
[322529681,1713040266521,-405.8328962,0.06039836,120]
[322529683,1713040266538,-202.9164481,0.06041479,120]
[322529686,1713040266555,-176.1591351,0.06042301,120]
[322529688,1713040266575,-535.9133703,0.06042301,120]
[322529691,1713040266594,-202.8732917,0.06042301,120]
[322529693,1713040266611,-202.9164481,0.06042301,120]
[322529696,1713040266627,-202.9164481,0.06043123,120]
[322529699,1713040266644,-317.0363527,0.06043945,120]
[322529701,1713040266660,-306.0,0.06043945,120]
[322529703,1713040266676,-300.3273481,0.06043945,120]
[322529706,1713040266692,-214.5726891,0.06043945,120]
[322529708,1713040266707,-153.0,0.06043945,120]
[322529711,1713040266723,-310.2845619,0.06043945,120]
[322529714,1713040266738,-153.0,0.06043945,120]
[322529716,1713040266753,-153.0,0.06045589,120]
[322529719,1713040266770,-2308.075,0.06093,119]
[322529721,1713040266785,-10000.0,0.061,120]
[322529724,1713040266801,-805.56338879,0.06114287,120]
[322529726,1713040266817,-200.0,0.06148,120]
[322529728,1713040266836,-10000.0,0.062,120]
[322529731,1713040266853,-805.56338879,0.06212566,120]
[322529734,1713040266869,-200.0,0.06249,120]
[322529736,1713040266887,-10000.0,0.063,120]
[322529739,1713040266905,-805.56338879,0.06310715,120]
[322529741,1713040266922,-324.5838289,0.06329973,120]
[322529744,1713040266938,-153.0,0.06329973,120]
[322529746,1713040266955,-307.0185416,0.06329973,120]
[322529749,1713040266972,-153.0,0.06330521,120]
[322529751,1713040266989,-306.0,0.06330521,120]
[322529754,1713040267006,-413.2756732,0.06330521,120]
[322529757,1713040267024,-153.7289042,0.06330521,120]
[322529766,1713040267043,-153.0,0.06330521,120]
[322529769,1713040267155,-153.0,0.06330521,120]
[322529771,1713040267166,-167.9747471,0.06330521,120]
[322529773,1713040267388,-160.93,0.06331067,120]
[322529775,1713040267400,-160.93,0.06331067,120]
[322529777,1713040267412,-306.0,0.06331068,120]
[322529779,1713040267424,-155.0,0.06333,120]
[322529781,1713040267436,-1880.516,0.06339,111]
[322529783,1713040267447,-200.0,0.06346,120]
[322529785,1713040267458,-10000.0,0.064,120]
[322529787,1713040267468,-805.56338879,0.06408929,120]
[322529789,1713040267480,-2325.1321,0.0642721,67]
[322529791,1713040267490,-200.0,0.06438,120]
[322529793,1713040267501,-2000.0,0.0649,120]
[322529796,1713040267512,-10000.0,0.065,120]
[322529797,1713040267523,-805.56338879,0.06507144,120]
[322529800,1713040267534,-200.0,0.06548,120]
[322529802,1713040267545,-10000.0,0.066,120]
[322529804,1713040267555,-805.56338879,0.06605358,120]
[322529806,1713040267565,-2341.0,0.0661,112]
[322529808,1713040267579,-200.0,0.06646,120]
[322529809,1713040267590,-155.0,0.06666,120]
[322529812,1713040267600,-10000.0,0.067,120]
[322529814,1713040267611,-805.56338879,0.06703571,120]
[322529816,1713040267621,-172700.0,0.0677,120]
[322529818,1713040267631,-5300.0,0.068,120]
[322529820,1713040267641,-4020.0,0.068,120]
[322529822,1713040267652,-805.56338879,0.06801787,120]
[322529823,1713040267663,-151.0,0.069,120]
[322529826,1713040267673,-300000.0,0.0699,120]
[322529827,1713040267683,-500000.0,0.0699,120]
[322529829,1713040267694,-500000.0,0.06998,120]
[322529830,1713040267705,-1000000.0,0.06999,120]
[322529831,1713040267715,-477.67,0.0699998,35]
[322529832,1713040267725,-472.0,0.0699999,35]
[322529833,1713040267736,-309.022304,0.07,2]
[322529834,1713040267746,-214.77521713,0.07,30]
[322529835,1713040267757,-236.05398913,0.07,30]
[322529836,1713040267767,-5000.0,0.07,30]
[322529837,1713040267778,-30636.17079852,0.07,120]
[322529838,1713040267789,-313.38554393,0.07,30]
[322529839,1713040267800,-156.01638906,0.07,30]
[322529840,1713040267810,-239.34666098,0.07,120]
[322529841,1713040267824,-162.6145084,0.07,30]
[322529842,1713040267834,-209.85543884,0.07,2]
[322529843,1713040267843,-1000.0,0.07,120]
[322529844,1713040267853,-199.92580286,0.07,30]
[322529845,1713040267862,-592.11494931,0.07,120]
[322529846,1713040267872,-155.57915177,0.07,120]
[322529847,1713040267882,-687.466642,0.07,120]
[322529848,1713040267892,-193.071153,0.07,120]
[322529852,1713040267976,-200.04680753,0.0028,120]
[322529854,1713040267986,-200.04680753,0.0029,120]
[322529856,1713040267996,-200.04680753,0.003,120]
[322529866,1713040268094,-2503.24633117,0.00031874,2]
[322529868,1713040268108,-22396.75366883,0.00031874,2]
[322529870,1713040268119,-500.0,0.00273972,120]
[322529873,1713040268129,-394.69421239,0.00273972,120]
[322529875,1713040268139,-503.26912575,0.00273972,120]
[322529877,1713040268149,-500.0,0.00301369,120]
[322529879,1713040268159,-200.04680753,0.0031,120]
[322529880,1713040268168,-200.04680753,0.0032,120]
[322529883,1713040268179,-500.0,0.00328767,120]
[322529885,1713040268189,-200.04680753,0.0033,120]
[322529887,1713040268201,-200.04680753,0.0034,120]
[322529889,1713040268212,-200.04680753,0.0035,120]
[322529891,1713040268224,-559.91195239,0.00356164,120]
[322529893,1713040268234,-200.04680753,0.0036,120]
[322529895,1713040268244,-200.04680753,0.0037,120]
[322529897,1713040268254,-200.04680753,0.0038,120]
[322529899,1713040268264,-200.04680753,0.0039,120]
[322529901,1713040268274,-200.54,0.004,120]
[322529906,1713040268324,-500.0,0.00273972,120]
[322529908,1713040268334,-200.44017767,0.00273972,120]
[322529910,1713040268345,-500.0,0.00301369,120]
[322529912,1713040268355,-500.0,0.00328767,120]
[322529930,1713040268554,1172.42259099,0.00025205,5]
[322529938,1713040268644,-470.13868753,0.00273971,30]
[322529940,1713040268658,-2948.83061181,0.00273971,30]
[322529942,1713040268670,-500.0,0.00273972,120]
[322529944,1713040268680,-500.0,0.00273972,120]
[322529946,1713040268692,-500.0,0.00273972,120]
[322529948,1713040268702,-153.0,0.00288,120]
[322529950,1713040268714,-153.0,0.00288,120]
[322529952,1713040268725,-153.0,0.00288,120]
[322529954,1713040268737,-153.0,0.00288,120]
[322529956,1713040268748,-500.0,0.00301369,120]
[322529958,1713040268759,-502.46128,0.00301369,120]
[322529960,1713040268770,-500.0,0.00301369,120]
[322529967,1713040268844,-1199.99210518,0.00025205,2]
[322529970,1713040268856,-301.88976708,0.00025205,2]
[322529972,1713040268870,-689.6366571,0.00025205,2]
[322529974,1713040268883,-9435.91312644,0.00025205,2]
[322529976,1713040268894,-189.56884564,0.00273971,30]
[322529978,1713040268905,-1428.13425117,0.00273971,30]
[322529980,1713040268917,-529.89237,0.00273973,120]
[322529989,1713040269005,-153.0,0.00288,120]
[322529992,1713040269020,-202.9164481,0.00288,120]
[322529994,1713040269030,-500.0,0.00328767,120]
[322530121,1713040270349,-1227.28830027,0.00273971,4]
[322530123,1713040270359,-448.27009146,0.00273971,30]
[322530125,1713040270370,-429.00963988,0.00273971,30]
[322530127,1713040270384,-529.89237,0.00273973,120]
[322530129,1713040270395,-529.89237,0.00273973,120]
[322530131,1713040270405,-529.89237,0.00273973,120]
[322530133,1713040270414,-529.89237,0.00273973,120]
[322530136,1713040270427,-153.0,0.00288,120]
[322530137,1713040270436,-153.0,0.00288,120]
[322530139,1713040270446,-202.9164481,0.00288,120]
[322530141,1713040270456,-153.0,0.00288,120]
[322534849,1713040661586,-174.10604275,0.00025205,2]
[322534850,1713040661610,-161.20633898,0.00025205,2]
[322534851,1713040661636,-157.694231,0.00027397,2]
[322534852,1713040661659,-501.93115947,0.00027399,2]
[322534853,1713040661682,-250.0,0.0002802,2]
[322534854,1713040661707,-155.09610642,0.00031872,4]
[322534855,1713040661729,-156.63566121,0.00031872,4]
[322534856,1713040661752,-155.80459589,0.00031872,4]
[322534857,1713040661775,-342.49538997,0.00031873,4]
[322534858,1713040661798,-1134.91240203,0.00031873,4]
[322534859,1713040661824,-207.18381603,0.00031873,4]
[322534860,1713040661848,-163.862063,0.00033574,2]
[322534861,1713040661874,-20238.99944239,0.000354,120]
[322534862,1713040661899,-400.0,0.00035886,2]
[322534863,1713040661925,-297.0,0.00035886,2]
[322534864,1713040661948,-465.13392178,0.00035887,4]
[322534865,1713040661970,-852.3925685,0.00035888,2]
[322534866,1713040661994,-320.10207528,0.00035889,30]
[322534867,1713040662017,-155.26294461,0.0003589,2]
[322534868,1713040662040,-560.0,0.00039475,3]
[322534869,1713040662064,-157.694231,0.00039574,2]